bitfinex/quotes_SOLUSD_20241209
["timestamp","ask_amount","ask_price","bid_price","bid_amount"]
[1733726659796,20.12549,231.35,231.32,5.0]
[1733726659797,20.12549,231.35,231.32,10.0]
[1733726660204,20.12549,231.35,231.34,5.0]
[1733726660399,20.12549,231.35,231.32,10.0]
[1733726660610,24.027864,231.34,231.3,10.0]
[1733726660912,20.12549,231.31,231.28,10.0]
[1733726662104,0.12549,231.3,231.26,10.0]
[1733726662606,0.12549,231.3,231.28,10.0]
[1733726662986,0.12549,231.3,231.28,5.0]
[1733726663314,0.12549,231.3,231.26,10.0]
[1733726663996,0.25098,231.3,231.26,10.0]
[1733726664198,0.12549,231.26,231.24,5.0]
[1733726664594,24.027864,231.26,231.24,5.0]
[1733726664918,20.0,231.23,231.2,1.5046]
[1733726665716,20.0,231.23,231.19,5.0]
[1733726666219,20.0,231.23,231.15,6.0747]
[1733726666220,20.0,231.23,231.21,5.0]
[1733726668805,23.902374,231.28,231.23,5.0]
[1733726668996,0.12549,231.29,231.25,5.0]
[1733726669510,2.8382228,231.33,231.25,5.0]
[1733726669709,2.8382228,231.33,231.27,5.0]
[1733726669913,0.12549,231.32,231.27,5.0]
[1733726670298,3.95366169,231.34,231.29,5.0]
[1733726670735,0.25098,231.33,231.29,5.0]
[1733726671629,20.0,231.32,231.29,5.0]
[1733726677036,20.0,231.36,231.31,5.0]
[1733726677444,23.902374,231.36,231.31,5.0]
[1733726677737,0.37647,231.36,231.31,5.0]
[1733726678714,20.0,231.35,231.31,5.0]
[1733726679323,5.06977392,231.39,231.34,5.0]
[1733726679539,6.422,231.46,231.36,5.0]
[1733726679749,9.7794995,231.45,231.36,5.0]
[1733726679947,0.25098,231.44,231.36,5.0]
[1733726680442,1.71027227,231.45,231.36,5.0]
[1733726680751,0.12549,231.42,231.36,5.0]
[1733726681053,5.54109735,231.47,231.32,1.6461]
[1733726681054,5.54109735,231.47,231.39,5.0]
[1733726681236,0.25098,231.46,231.37,5.0]
[1733726681544,5.79207735,231.46,231.39,5.0]
[1733726682119,0.12549,231.42,231.39,5.0]
[1733726682614,0.12549,231.42,231.37,5.0]
[1733726682814,24.027864,231.42,231.37,5.0]
[1733726683028,20.0,231.39,231.37,5.0]
[1733726688954,20.0,231.43,231.37,5.0]
[1733726689148,0.12549,231.42,231.37,5.0]
[1733726689851,0.12549,231.42,231.39,5.0]
[1733726690325,20.0,231.39,231.37,5.0]
[1733726691540,0.12549,231.35,231.32,6.6461]
[1733726691738,20.12549,231.35,231.32,6.6461]
[1733726692255,20.12549,231.35,231.3,5.0]
[1733726695440,20.12549,231.35,231.32,5.0]
[1733726696443,20.0,231.35,231.32,5.0]
[1733726696856,20.0,231.35,231.27,1.5861]
[1733726696857,20.0,231.35,231.34,5.0]
[1733726700146,20.0,231.35,231.31,5.0]
[1733726700350,0.12549,231.34,231.31,5.0]
[1733726700580,0.12549,231.3,231.27,6.5861]
[1733726701257,0.12549,231.3,231.27,5.0]
[1733726702670,0.12549,231.3,231.25,5.0]
[1733726702888,20.0,231.27,231.25,5.0]
[1733726703543,20.0,231.34,231.25,5.0]
[1733726703747,20.0,231.3,231.27,5.0]
[1733726703956,20.0,231.3,231.29,5.0]
[1733726705489,0.12549,231.29,231.25,5.0]
[1733726705972,20.0,231.26,231.25,5.0]
[1733726706271,20.12549,231.26,231.25,5.0]
[1733726706444,20.12549,231.26,231.23,5.0]
[1733726709076,0.12549,231.25,231.23,5.0]
[1733726709316,0.12549,231.25,231.17,1.5712]
[1733726709317,24.027864,231.25,231.2,5.0]
[1733726709472,0.12549,231.21,231.18,5.0]
[1733726710371,0.12549,231.21,231.2,5.0]
[1733726710764,0.12549,231.21,231.18,5.0]
[1733726711608,24.027864,231.21,231.18,5.0]
[1733726711770,20.0,231.18,231.14,5.0]
[1733726711966,20.0,231.14,231.12,6.6013]
[1733726712588,20.0,231.14,231.12,5.0]
[1733726715072,0.12549,231.13,231.12,5.0]
[1733726715316,0.12549,231.13,231.1,5.0]
[1733726715483,0.12549,231.1,231.08,5.0]
[1733726715675,20.12549,231.1,231.08,5.0]
[1733726718087,0.12549,231.08,231.06,5.0]
[1733726718285,23.902374,231.09,231.04,5.0]
[1733726718286,0.12549,231.06,231.04,5.0]
[1733726718480,20.12549,231.06,231.02,5.0]
[1733726719309,20.12549,231.06,231.04,5.0]
[1733726719507,20.0,231.06,231.04,5.0]
[1733726721014,20.0,231.13,231.08,5.0]
[1733726721393,20.0,231.09,231.08,5.0]
[1733726722483,20.25098,231.09,231.08,5.0]
[1733726722682,0.12549,231.08,231.04,5.0]
[1733726722886,0.25098,231.08,231.02,5.0]
[1733726723284,0.12549,231.06,231.0,5.0]
[1733726723484,20.0,231.03,231.0,5.0]
[1733726724095,20.0,231.03,231.02,5.0]
[1733726725090,20.0,231.03,230.97,6.643]
[1733726725091,0.12549,231.03,230.97,6.643]
[1733726726397,23.902374,231.08,230.97,6.643]
[1733726726605,20.0,231.05,230.97,6.643]
[1733726726795,20.0,231.05,230.97,7.292244]
[1733726727987,20.0,231.05,230.97,6.643]
[1733726728407,0.12549,231.04,230.97,6.643]
[1733726729104,20.0,231.05,230.97,6.643]
[1733726729317,20.0,231.01,230.97,6.643]
[1733726730229,0.12549,231.09,230.97,6.643]
[1733726730423,20.0,231.04,230.97,7.29222718]
[1733726731002,20.0,231.04,230.97,6.643]
[1733726731201,20.0,231.08,230.97,6.643]
[1733726731420,20.0,231.04,230.97,6.643]
[1733726732027,20.0,231.04,230.95,1.5543]
[1733726734129,0.25098,231.09,230.96,0.64931129]
[1733726734322,0.12549,231.09,230.96,0.64931129]
[1733726734499,20.0,231.08,230.96,0.64931129]
[1733726734824,0.12549,231.11,230.96,0.64931129]
[1733726735403,0.37647,231.11,230.96,0.64931129]
[1733726735943,20.0,231.08,230.96,0.64931129]
[1733726736999,20.0,231.08,230.95,1.5543]
[1733726737000,20.0,231.04,230.95,1.5543]
[1733726737404,20.0,231.04,230.95,2.20359499]
[1733726738607,24.153354,231.11,230.95,7.20359499]
[1733726738810,20.0,231.08,230.95,7.20359499]
[1733726739516,0.25098,231.11,230.97,5.0]
[1733726739740,5.06977392,231.15,230.99,6.2155]
[1733726740037,0.25098,231.16,231.0,0.64911889]
[1733726740612,0.25098,231.16,230.99,6.2155]
[1733726740920,20.0,231.11,230.99,6.2155]
[1733726741109,23.902374,231.12,230.99,6.2155]
[1733726741320,20.0,231.09,230.99,6.2155]
[1733726741512,20.0,231.09,230.99,6.86466241]
[1733726744012,0.12549,231.13,231.0,1.6597]
[1733726744306,0.12549,231.16,231.01,0.64906582]
[1733726745506,20.0,231.14,231.01,5.64906582]
[1733726746018,20.0,231.14,231.01,0.64906582]
[1733726747357,20.0,231.1,231.01,0.64906582]
[1733726749263,0.12549,231.16,231.01,10.64906582]
[1733726749426,20.0,231.14,231.01,10.64906582]
[1733726750136,0.25098,231.18,231.03,5.0]
[1733726750495,0.25098,231.18,231.05,1.5579]
[1733726750829,24.027864,231.18,231.06,0.64895933]
[1733726751131,0.12549,231.21,231.06,0.64895933]
[1733726751132,20.0,231.15,231.06,0.64895933]
[1733726751331,20.0,231.15,231.07,6.3123]
[1733726752138,0.12549,231.19,231.07,6.3123]
[1733726752352,0.12549,231.2,231.07,6.3123]
[1733726752533,0.12549,231.19,231.07,6.3123]
[1733726752851,20.0,231.16,231.07,6.3123]
[1733726753229,20.0,231.12,231.07,6.3123]
[1733726753428,20.0,231.12,231.05,1.5579]
[1733726754039,6.73771964,231.23,231.05,1.5579]
[1733726754040,1.73771964,231.23,231.06,0.64906168]
[1733726754241,0.25098,231.22,231.06,0.64906168]
[1733726754434,0.25098,231.22,231.05,2.20691124]
[1733726755029,0.12549,231.22,231.05,2.20691124]
[1733726755229,44.027864,231.2,231.05,2.20691124]
[1733726757637,44.027864,231.2,231.05,1.5579]
[1733726758155,48.10681314,231.2,231.05,1.5579]
[1733726758535,44.027864,231.2,231.05,1.5579]
[1733726758869,20.0,231.11,231.05,1.5579]
[1733726759771,24.027864,231.14,231.05,1.5579]
[1733726760063,20.0,231.11,231.05,1.5579]
[1733726760645,23.902374,231.1,231.05,1.5579]
[1733726760831,20.0,231.07,231.05,1.5579]
[1733726761948,23.902374,231.18,231.05,1.5579]
[1733726762155,20.0,231.11,231.05,1.5579]
[1733726764245,5.23776401,231.24,231.09,13.18614396]
[1733726764447,6.5589,231.27,231.11,1.5405]
[1733726764739,0.25098,231.26,231.11,1.5405]
[1733726765161,3.09317997,231.26,231.11,1.5405]
[1733726765356,0.12549,231.26,231.11,1.5405]
[1733726765544,20.0,231.24,231.11,1.5405]
[1733726765744,0.37647,231.23,231.11,1.5405]
[1733726766658,20.0,231.2,231.11,1.5405]
[1733726767237,1.71980597,231.27,231.11,1.5405]
[1733726767564,6.6259,231.32,231.16,6.5771]
[1733726767767,1.4181,231.34,231.18,1.5405]
[1733726768066,1.4181,231.34,231.19,0.64863867]
[1733726768274,0.25098,231.33,231.19,0.64863867]
[1733726769038,1.4181,231.34,231.19,0.64863867]
[1733726769240,20.0,231.33,231.19,0.64863867]
[1733726769474,20.0,231.33,231.19,13.83478263]
[1733726769640,0.25098,231.32,231.2,8.1176]
[1733726769845,20.0,231.33,231.21,0.64858796]
[1733726770574,0.25098,231.35,231.21,0.64858796]
[1733726770965,0.12549,231.35,231.21,0.64858796]
[1733726771448,0.12549,231.35,231.2,8.1176]
[1733726771858,0.12549,231.32,231.2,8.1176]
[1733726772057,20.0,231.29,231.2,8.1176]
[1733726772849,5.23776401,231.41,231.21,0.64860486]
[1733726773052,23.776884,231.4,231.22,13.18614396]
[1733726773259,0.25098,231.39,231.23,0.64845992]
[1733726773677,6.92088082,231.41,231.24,1.5601]
[1733726773851,1.4181,231.46,231.25,13.83456665]
[1733726774047,19.812044,231.47,231.26,19.71994396]
[1733726774252,0.25098,231.46,231.27,0.64834211]
[1733726774588,3.85506025,231.46,231.27,13.83448607]
[1733726774872,1.75130241,231.47,231.29,13.18614396]
[1733726775172,5.23776401,231.48,231.29,13.18614396]
[1733726775173,5.23776401,231.48,231.3,0.64826693]
[1733726776150,5.23776401,231.48,231.3,18.83441089]
[1733726776346,0.25098,231.48,231.3,13.83441089]
[1733726776858,1.9155452,231.51,231.3,13.83441089]
[1733726777062,0.25098,231.48,231.3,18.83441089]
[1733726777364,0.12549,231.47,231.3,18.83441089]
[1733726777552,0.12549,231.47,231.31,19.20914396]
[1733726777751,0.12549,231.47,231.32,0.64817336]
[1733726778083,0.4974452,231.51,231.33,1.5507]
[1733726778261,0.4974452,231.51,231.34,0.64811184]
[1733726778576,2.20370792,231.51,231.34,0.64811184]
[1733726778876,0.4974452,231.51,231.34,0.64811184]
[1733726779443,0.37647,231.5,231.34,0.64811184]
[1733726779740,0.12549,231.48,231.34,0.64811184]
[1733726780255,20.0,231.45,231.34,0.64811184]
[1733726780494,24.027864,231.48,231.33,1.5507]
[1733726780495,20.0,231.41,231.33,1.5507]
[1733726782080,3.98055025,231.48,231.33,1.5507]
[1733726782282,24.027864,231.5,231.34,0.64830611]
[1733726782456,0.12549,231.5,231.34,0.64830611]
[1733726783159,2.22074473,231.51,231.34,0.64830611]
[1733726783160,0.4974452,231.51,231.34,0.64830611]
[1733726783551,20.0,231.49,231.34,0.64830611]
[1733726783746,20.0,231.49,231.34,13.83445007]
[1733726783950,0.12549,231.48,231.34,13.83445007]
[1733726784252,0.12549,231.48,231.34,0.64830611]
[1733726784452,20.0,231.47,231.34,13.83445007]
[1733726785467,20.0,231.47,231.35,6.5953]
[1733726785673,20.0,231.47,231.36,0.64807443]
[1733726786685,24.027864,231.46,231.35,6.5953]
[1733726786871,20.0,231.43,231.35,6.5953]
[1733726791971,3.85506025,231.49,231.35,6.5953]
[1733726791972,3.85506025,231.49,231.36,0.64816506]
[1733726793596,20.25098,231.48,231.35,6.5953]
[1733726794989,20.0,231.44,231.35,6.5953]
[1733726795604,0.12549,231.43,231.35,6.5953]
[1733726796088,20.0,231.44,231.35,6.5953]
[1733726796398,20.12549,231.48,231.35,7.24355989]
[1733726796688,20.0,231.48,231.35,7.24355989]
[1733726797492,20.0,231.48,231.36,1.553]
[1733726799166,24.153354,231.47,231.36,1.553]
[1733726799375,0.12549,231.46,231.36,1.553]
[1733726799566,20.0,231.44,231.36,1.553]
[1733726802803,24.027864,231.43,231.36,1.553]
[1733726802972,20.0,231.4,231.36,1.553]
[1733726806606,20.0,231.4,231.24,5.0]
[1733726806607,20.0,231.36,231.31,1.6363]
[1733726809400,1.73038426,231.41,231.29,6.3536]
[1733726809401,20.0,231.32,231.29,6.3536]
[1733726813371,0.12549,231.37,231.29,6.3536]
[1733726813568,20.0,231.34,231.29,6.3536]
[1733726813768,4.48174419,231.45,231.29,6.3536]
[1733726814002,6.18746639,231.45,231.29,6.3536]
[1733726814296,1.7057222,231.45,231.3,2.29070702]
[1733726814504,4.61108007,231.46,231.3,2.29070702]
[1733726814505,0.25098,231.44,231.3,2.29070702]
[1733726814799,4.61108007,231.46,231.3,2.29070702]
[1733726815706,0.12549,231.45,231.3,2.29070702]
[1733726816076,24.153354,231.45,231.3,2.29070702]
[1733726816273,20.0,231.42,231.3,2.29070702]
[1733726816775,20.0,231.42,231.3,1.6424]
[1733726819306,20.0,231.42,231.31,0.6483093]
[1733726820698,20.0,231.42,231.3,1.6424]
[1733726821000,24.153354,231.45,231.3,1.6424]
[1733726821001,20.0,231.38,231.3,1.6424]
[1733726822417,24.027864,231.37,231.3,1.6424]
[1733726822618,20.0,231.34,231.3,1.6424]
[1733726824309,20.0,231.3,231.24,8.0243]
[1733726825432,0.12549,231.29,231.24,8.0243]
[1733726827418,20.0,231.3,231.24,8.0243]
[1733726827605,21.68584553,231.36,231.24,8.0243]
[1733726827801,3.85506025,231.42,231.25,0.64849138]
[1733726828706,3.85506025,231.42,231.24,8.0243]
[1733726828904,0.25098,231.41,231.24,8.0243]
[1733726829340,0.12549,231.39,231.24,8.0243]
[1733726829633,24.027864,231.37,231.24,8.0243]
[1733726829836,20.0,231.34,231.24,8.0243]
[1733726830131,0.12549,231.33,231.24,8.0243]
[1733726834634,24.027864,231.33,231.24,8.0243]
[1733726834842,20.0,231.3,231.24,8.0243]
[1733726835006,0.12549,231.29,231.24,8.0243]
[1733726835718,20.0,231.3,231.24,8.0243]
[1733726838633,0.12549,231.33,231.24,8.0243]
[1733726839229,20.0,231.31,231.24,8.0243]
[1733726840410,3.85506025,231.42,231.24,8.0243]
[1733726840411,3.85506025,231.42,231.25,0.6484817]
[1733726840611,1.75120602,231.42,231.25,0.6484817]
[1733726840804,0.25098,231.41,231.25,0.6484817]
[1733726841420,6.651127,231.44,231.25,0.6484817]
[1733726841909,3.85506025,231.46,231.28,1.5798]
[1733726842110,3.85506025,231.46,231.29,0.64832977]
[1733726843035,6.6036,231.47,231.32,1.5798]
[1733726843209,0.25098,231.46,231.33,0.64817426]
[1733726843405,0.4974452,231.51,231.33,0.64817426]
[1733726844143,0.25098,231.5,231.33,0.64817426]
[1733726844316,0.12549,231.49,231.33,0.64817426]
[1733726844839,0.12549,231.46,231.33,0.64817426]
[1733726845035,0.25098,231.46,231.33,0.64817426]
[1733726846035,20.0,231.47,231.35,13.1489375]
[1733726846244,2.23768474,231.51,231.37,1.5759]
[1733726846245,0.4974452,231.51,231.37,1.5759]
[1733726846446,0.4974452,231.51,231.38,0.64806617]
[1733726847035,0.25098,231.5,231.38,0.64806617]
[1733726847413,0.12549,231.49,231.38,0.64806617]
[1733726847613,20.0,231.47,231.38,0.64806617]
[1733726848361,20.0,231.47,231.37,1.5759]
[1733726848713,20.0,231.43,231.37,1.5759]
[1733726851027,24.027864,231.42,231.37,1.5759]
[1733726851735,20.0,231.39,231.37,1.5759]
[1733726853954,0.25098,231.38,231.37,1.524]
[1733726854138,20.0,231.35,231.34,6.1865]
[1733726854460,20.0,231.35,231.25,6.1218]
[1733726855158,0.25098,231.38,231.25,6.1218]
[1733726855330,20.0,231.35,231.25,6.1218]
[1733726856126,24.027864,231.38,231.25,6.1218]
[1733726856325,20.0,231.35,231.25,6.1218]
[1733726856650,0.12549,231.34,231.25,6.1218]
[1733726856865,20.0,231.31,231.25,6.1218]
[1733726857156,20.0,231.31,231.26,1.5517]
[1733726857651,0.12549,231.3,231.26,1.5517]
[1733726861647,20.0,231.31,231.26,1.5517]
[1733726861851,0.25098,231.34,231.26,1.5517]
[1733726862051,0.12549,231.34,231.26,1.5517]
[1733726863158,20.0,231.32,231.26,1.5517]
[1733726865163,24.027864,231.37,231.26,1.5517]
[1733726865338,20.0,231.34,231.26,1.5517]
[1733726865830,0.25098,231.37,231.26,1.5517]
[1733726866037,0.12549,231.37,231.27,0.64844702]
[1733726866246,0.12549,231.38,231.27,0.64844702]
[1733726866464,0.12549,231.38,231.26,1.5517]
[1733726867051,0.12549,231.38,231.26,2.20015075]
[1733726867454,0.12549,231.38,231.26,1.5517]
[1733726867455,20.0,231.36,231.26,1.5517]
[1733726867763,0.12549,231.35,231.26,1.5517]
[1733726868443,0.12549,231.35,231.26,2.20014827]
[1733726868642,20.0,231.36,231.26,2.20014827]
[1733726870971,23.902374,231.41,231.26,2.20014827]
[1733726871175,20.0,231.38,231.26,2.20014827]
[1733726871539,0.12549,231.39,231.26,2.20014827]
[1733726871749,0.25098,231.39,231.26,2.20014827]
[1733726874650,20.0,231.36,231.26,1.5517]
[1733726874980,0.12549,231.35,231.26,1.5517]
[1733726875676,24.027864,231.35,231.26,1.5517]
[1733726878457,0.12549,231.35,231.26,1.5517]
[1733726878657,20.0,231.44,231.26,2.2001507]
[1733726878876,0.25098,231.43,231.26,10.61960245]
[1733726879979,24.027864,231.39,231.26,10.61960245]
[1733726880275,20.0,231.36,231.26,10.61960245]
[1733726881755,20.0,231.36,231.26,2.2001507]
[1733726882756,0.12549,231.35,231.26,2.2001507]
[1733726883081,0.12549,231.35,231.26,2.200164]
[1733726884888,20.0,231.36,231.26,2.200164]
[1733726885055,20.0,231.36,231.26,10.61961575]
[1733726885255,20.0,231.36,231.27,8.41945175]
[1733726885485,20.0,231.36,231.28,0.64837416]
[1733726886382,3.6165676,231.47,231.29,7.9453]
[1733726886679,0.25098,231.46,231.3,0.64825089]
[1733726886878,9.17690461,231.51,231.3,9.06770264]
[1733726887054,9.17690461,231.51,231.3,0.64825089]
[1733726887253,0.25098,231.5,231.3,0.64825089]
[1733726887451,0.12549,231.47,231.3,0.64825089]
[1733726887666,0.25098,231.47,231.3,0.64825089]
[1733726887872,10.90050205,231.51,231.32,14.83075175]
[1733726888076,10.90050205,231.51,231.34,1.5174]
[1733726888383,0.25098,231.5,231.35,0.64812062]
[1733726888686,2.22104264,231.51,231.35,0.64812062]
[1733726889188,0.25098,231.5,231.35,0.64812062]
[1733726889991,0.12549,231.49,231.35,0.64812062]
[1733726890294,20.0,231.47,231.35,0.64812062]
[1733726891990,0.25098,231.46,231.34,2.16552828]
[1733726892771,0.12549,231.46,231.34,10.58498003]
[1733726893475,20.0,231.47,231.36,1.6493]
[1733726893677,20.0,231.47,231.37,0.64809381]
[1733726894961,0.12549,231.5,231.39,6.5569]
[1733726895156,0.4974452,231.51,231.4,0.64801572]
[1733726896295,0.4974452,231.51,231.41,1.6426]
[1733726898311,0.4974452,231.51,231.42,0.6479515]
[1733726898911,0.4974452,231.51,231.44,9.92455175]
[1733726899214,0.4974452,231.51,231.45,0.64782924]
[1733726899384,0.4974452,231.51,231.44,1.5051]
[1733726899711,0.4974452,231.51,231.44,2.15300876]
[1733726902003,0.25098,231.5,231.44,1.5051]
[1733726903102,20.0,231.47,231.44,1.5051]
[1733726903907,0.12549,231.46,231.44,1.5051]
[1733726904088,0.12549,231.46,231.39,1.5858]
[1733726906317,20.0,231.47,231.4,0.64810945]
[1733726906613,20.0,231.47,231.39,1.5858]
[1733726907512,0.4974452,231.51,231.4,0.64805138]
[1733726908192,0.4974452,231.51,231.4,9.06750313]
[1733726908387,0.4974452,231.51,231.42,10.08135175]
[1733726908619,0.4974452,231.51,231.43,15.53664264]
[1733726909109,0.4974452,231.51,231.43,6.4693]
[1733726909316,0.12549,231.5,231.43,6.4693]
[1733726910613,0.4974452,231.51,231.43,6.4693]
[1733726911216,0.4974452,231.51,231.44,0.64792535]
[1733726912118,0.4974452,231.51,231.44,9.0673771]
[1733726912810,0.4974452,231.51,231.46,8.41945175]
[1733726913000,1.7156974,231.64,231.48,1.6299]
[1733726913205,20.0,231.64,231.49,0.64773027]
[1733726913407,1.47,231.65,231.49,0.64773027]
[1733726913610,3.6165676,231.67,231.49,9.06718202]
[1733726913815,5.32506025,231.7,231.51,8.41945175]
[1733726914122,5.32506025,231.7,231.52,0.64763594]
[1733726914123,7.08014559,231.7,231.52,0.64763594]
[1733726915205,0.25098,231.66,231.52,0.64763594]
[1733726915405,0.12549,231.65,231.52,9.06708769]
[1733726915588,20.0,231.63,231.52,9.06708769]
[1733726918424,0.12549,231.62,231.52,0.64763594]
[1733726918992,20.0,231.63,231.53,1.6094]
[1733726919194,20.0,231.67,231.54,0.64761136]
[1733726919622,0.25098,231.66,231.54,0.64761136]
[1733726919824,20.0,231.67,231.54,0.64761136]
[1733726920522,0.37647,231.66,231.54,0.64761136]
[1733726921328,20.0,231.63,231.53,1.6094]
[1733726921528,0.12549,231.62,231.53,1.6094]
[1733726921702,0.12549,231.62,231.53,2.25706687]
[1733726922995,0.12549,231.62,231.53,10.67651862]
[1733726923196,1.47,231.7,231.54,8.41945175]
[1733726923512,1.47,231.7,231.55,9.06699702]
[1733726923836,3.85506025,231.74,231.55,9.06699702]
[1733726924002,3.85506025,231.74,231.57,8.41945175]
[1733726924325,0.25098,231.72,231.58,0.64747616]
[1733726925323,0.12549,231.69,231.58,0.64747616]
[1733726925532,20.25098,231.69,231.58,0.64747616]
[1733726926524,0.25098,231.64,231.54,0.64753209]
[1733726926701,20.0,231.65,231.54,9.06698384]
[1733726926901,20.0,231.65,231.55,8.41945175]
[1733726927098,24.027864,231.69,231.54,0.64753209]
[1733726927703,20.0,231.62,231.54,0.64753209]
[1733726929043,20.0,231.62,231.54,9.06698384]
[1733726929806,20.0,231.62,231.54,0.64753209]
[1733726930311,23.776884,231.61,231.54,0.64753209]
[1733726930673,23.776884,231.61,231.53,1.6094]
[1733726931021,0.25098,231.6,231.53,1.6094]
[1733726932007,20.0,231.58,231.53,1.6094]
[1733726934023,20.0,231.58,231.53,2.25714394]
[1733726934342,20.0,231.58,231.53,1.6094]
[1733726934731,23.776884,231.61,231.53,2.2570805]
[1733726935664,5.06307181,231.73,231.53,2.2570805]
[1733726935835,0.12549,231.71,231.53,2.2570805]
[1733726936045,0.25098,231.71,231.53,2.2570805]
[1733726936360,0.25098,231.69,231.53,2.2570805]
[1733726936658,0.25098,231.69,231.53,22.2570805]
[1733726937642,24.027864,231.66,231.53,22.2570805]
[1733726938355,20.0,231.63,231.53,2.2570805]
[1733726938558,24.027864,231.62,231.53,1.6094]
[1733726939860,23.8933772,231.62,231.53,1.6094]
[1733726940242,23.776884,231.62,231.54,0.64770352]
[1733726940464,20.0,231.63,231.54,9.06715527]
[1733726940757,20.0,231.71,231.54,0.64770352]
[1733726940944,20.0,231.72,231.54,0.64770352]
[1733726941961,24.027864,231.67,231.54,0.64770352]
[1733726942161,23.902374,231.63,231.54,0.64770352]
[1733726943367,23.902374,231.63,231.53,1.6094]
[1733726945049,23.902374,231.63,231.53,2.2570972]
[1733726946587,20.0,231.6,231.53,1.6094]
[1733726946782,0.12549,231.62,231.53,1.6094]
[1733726947141,0.12549,231.62,231.53,21.6094]
[1733726951178,23.902374,231.63,231.54,0.64771026]
[1733726951383,23.902374,231.63,231.53,21.6094]
[1733726951953,23.902374,231.63,231.54,0.64764243]
[1733726956561,23.902374,231.63,231.53,21.6094]
[1733726959163,23.902374,231.63,231.54,0.64764826]
[1733726959575,23.776884,231.63,231.54,0.64764826]
[1733726960977,20.0,231.66,231.54,0.64764826]
[1733726961289,23.902374,231.65,231.54,0.64764826]
[1733726961669,0.12549,231.64,231.54,0.64764826]
[1733726962176,0.12549,231.64,231.53,21.6094]
[1733726964775,23.902374,231.61,231.53,1.6094]
[1733726965079,23.902374,231.57,231.53,1.6094]
[1733726965278,0.12549,231.56,231.5,6.6642]
[1733726965680,0.12549,231.56,231.48,1.5265]
[1733726967869,24.027864,231.53,231.48,1.5265]
[1733726969408,0.12549,231.49,231.45,6.1374]
[1733726969714,23.902374,231.49,231.45,6.1374]
[1733726970608,23.902374,231.49,231.43,1.5379]
[1733726971777,6.47,231.58,231.4,6.4882]
[1733726971778,23.902374,231.45,231.4,6.4882]
[1733726971980,23.902374,231.45,231.38,1.5379]
[1733726973682,23.776884,231.45,231.38,2.18608245]
[1733726974012,1.47,231.58,231.39,8.41945175]
[1733726974182,3.2002268,231.58,231.4,0.64802882]
[1733726974391,1.47,231.58,231.4,0.64802882]
[1733726974588,0.12549,231.57,231.4,9.06748057]
[1733726975493,20.12549,231.56,231.4,9.06748057]
[1733726975738,20.0,231.5,231.4,9.06748057]
[1733726975882,20.0,231.5,231.42,8.41945175]
[1733726976188,20.0,231.5,231.44,1.517]
[1733726976811,0.12549,231.53,231.44,1.517]
[1733726977013,1.73469989,231.59,231.45,0.64797983]
[1733726977192,0.12549,231.6,231.45,0.64797983]
[1733726977713,0.25098,231.62,231.45,9.06743158]
[1733726978380,0.12549,231.58,231.45,9.06743158]
[1733726978581,20.0,231.55,231.45,9.06743158]
[1733726978893,23.902374,231.54,231.45,0.64797983]
[1733726979909,23.776884,231.54,231.45,9.06743158]
[1733726980113,3.6165676,231.67,231.48,8.41945175]
[1733726980319,3.6165676,231.67,231.5,1.517]
[1733726980523,5.32654008,231.67,231.5,1.517]
[1733726981023,0.25098,231.65,231.5,1.517]
[1733726981497,24.027864,231.61,231.5,1.517]
[1733726981691,24.027864,231.61,231.51,0.6477438]
[1733726982518,1.47,231.69,231.51,0.6477438]